fUST/lending_fUST_20240921
["ID","MTS","AMOUNT","RATE_DAILY","PERIOD"]
[338737847,1726903841216,-500.0,0.0001456,2]
[338737848,1726903841226,-610.91501293,0.0001456,2]
[338737849,1726903841236,-500.0,0.0001456,2]
[338737850,1726903841246,-500.0,0.0001456,2]
[338737851,1726903841256,-500.0,0.0001456,2]
[338737852,1726903841266,-500.0,0.0001456,2]
[338737853,1726903841275,-157.60850622,0.00014561,2]
[338737854,1726903841285,-48460.3444379,0.00014561,2]
[338737855,1726903841295,-10316.0971946,0.00014561,2]
[338737856,1726903841304,-548.10149986,0.00014561,2]
[338737857,1726903841314,-541.023795,0.00014562,2]
[338737858,1726903841326,-541.023795,0.00014562,2]
[338737859,1726903841337,-48460.3444379,0.00014562,2]
[338737860,1726903841347,-10316.0971946,0.00014562,2]
[338737861,1726903841357,-1000.0,0.00014565,2]
[338737862,1726903841367,-1000.0,0.00014565,2]
[338737863,1726903841376,-749.6572609,0.00014565,2]
[338737864,1726903841386,-500.0,0.00014565,2]
[338737865,1726903841396,-933.66,0.00014565,2]
[338737866,1726903841408,-500.0,0.00014565,2]
[338737867,1726903841418,-500.0,0.00014565,2]
[338737868,1726903841428,-550.69,0.00014565,2]
[338737869,1726903841439,-17433.27,0.00014565,2]
[338737870,1726903841450,-2498.75,0.00014565,2]
[338737871,1726903841459,-500.0,0.00014565,2]
[338737872,1726903841469,-500.0,0.00014571,2]
[338737873,1726903841478,-952.32,0.00014571,2]
[338737874,1726903841488,-500.0,0.00014571,2]
[338737875,1726903841498,-514.8613394,0.00014571,2]
[338737876,1726903841507,-500.0,0.00014571,2]
[338737877,1726903841518,-540.44,0.00014571,2]
[338737878,1726903841528,-500.0,0.00014571,2]
[338737879,1726903841539,-500.0,0.00014571,2]
[338737880,1726903841548,-500.0,0.00014571,2]
[338737881,1726903841737,-500.0,0.00014571,2]
[338737882,1726903841747,-500.0,0.00014571,2]
[338737883,1726903841756,-500.0,0.00014571,2]
[338737884,1726903841765,-500.0,0.00014571,2]
[338737885,1726903841774,-500.0,0.00014571,2]
[338737886,1726903841784,-500.0,0.00014571,2]
[338737887,1726903841793,-151.0,0.00014571,2]
[338737888,1726903841802,-151.0,0.00014571,2]
[338737889,1726903841811,-2098.32,0.00014571,2]
[338737890,1726903841820,-500.0,0.00014571,2]
[338737891,1726903841830,-500.0,0.00014571,2]
[338737892,1726903841840,-500.0,0.00014571,2]
[338737893,1726903841851,-1285.419918,0.00014571,2]
[338737894,1726903841860,-1285.419918,0.00014571,2]
[338737895,1726903841870,-500.0,0.00014571,2]
[338737896,1726903841882,-151.0,0.00014571,2]
[338737897,1726903841893,-151.0,0.00014571,2]
[338737898,1726903841903,-500.0,0.00014571,2]
[338737899,1726903841915,-151.523071,0.00014571,2]
[338737900,1726903841925,-151.0,0.00014571,2]
[338737901,1726903841935,-500.0,0.00014571,2]
[338737902,1726903841945,-500.0,0.00014571,2]
[338737903,1726903841954,-151.0,0.00014571,2]
[338737904,1726903841963,-500.0,0.00014571,2]
[338737905,1726903841974,-512.71212299,0.00014571,2]
[338737906,1726903841983,-208.586865,0.00014571,2]
[338737907,1726903841993,-208.586865,0.00014571,2]
[338737908,1726903842004,-2175.53523,0.00014571,2]
[338737909,1726903842014,-2175.53523,0.00014571,2]
[338737910,1726903842023,-500.0,0.00014571,2]
[338737911,1726903842034,-908.649052,0.00014571,2]
[338737912,1726903842045,-222.935091,0.00014571,2]
[338737913,1726903842056,-908.649052,0.00014571,2]
[338737914,1726903842066,-1164.640271,0.00014571,2]
[338737915,1726903842075,-1164.640271,0.00014571,2]
[338737916,1726903842086,-222.935091,0.00014571,2]
[338737917,1726903842096,-151.0,0.00014571,2]
[338737918,1726903842106,-500.0,0.00014571,2]
[338737919,1726903842118,-500.0,0.00014571,2]
[338737920,1726903842129,-910.96,0.00014571,2]
[338737921,1726903842139,-758.83,0.00014571,2]
[338737922,1726903842150,-151.0,0.00014571,2]
[338737923,1726903842160,-500.0,0.00014571,2]
[338737924,1726903842170,-151.0,0.00014571,2]
[338737925,1726903842180,-1084.14,0.00014571,2]
[338737926,1726903842190,-500.0,0.00014571,2]
[338737927,1726903842202,-1043.994693,0.00014571,2]
[338737928,1726903842214,-500.0,0.00014572,2]
[338737929,1726903842223,-626.33,0.00014572,2]
[338737930,1726903842234,-500.0,0.00014572,2]
[338737931,1726903842245,-500.0,0.00014572,2]
[338737932,1726903842253,-500.0,0.00014572,2]
[338737933,1726903842262,-500.0,0.00014572,2]
[338737934,1726903842273,-503.62,0.00014572,2]
[338737935,1726903842283,-500.0,0.00014572,2]
[338737936,1726903842293,-500.0,0.00014572,2]
[338737937,1726903842303,-500.0,0.00014572,2]
[338737938,1726903842312,-500.0,0.00014572,2]
[338737939,1726903842323,-641.51947122,0.00014572,2]
[338737940,1726903842333,-500.0,0.00014572,2]
[338737941,1726903842342,-500.0,0.00014572,2]
[338737942,1726903842352,-500.0,0.00014572,2]
[338737943,1726903842362,-500.0,0.00014572,2]
[338737944,1726903842373,-500.0,0.00014572,2]
[338737945,1726903842387,-500.0,0.00014572,2]
[338737946,1726903842398,-500.0,0.00014572,2]
[338737947,1726903842420,-500.0,0.00014572,2]
[338737948,1726903842432,-500.0,0.00014572,2]
[338737949,1726903842442,-500.0,0.00014572,2]
[338737950,1726903842452,-500.0,0.00014572,2]
[338737951,1726903842461,-500.0,0.00014572,2]
[338737952,1726903842470,-500.0,0.00014572,2]
[338737953,1726903842480,-500.0,0.00014572,2]
[338737954,1726903842489,-500.0,0.00014572,2]
[338737955,1726903842498,-500.0,0.00014572,2]
[338737956,1726903842507,-500.0,0.00014572,2]
[338737957,1726903842516,-500.0,0.00014572,2]
[338737958,1726903842526,-500.0,0.00014572,2]
[338737959,1726903842535,-500.0,0.00014572,2]
[338737960,1726903842544,-500.0,0.00014572,2]
[338737961,1726903842553,-500.0,0.00014572,2]
[338737962,1726903842563,-500.0,0.00014572,2]
[338737963,1726903842574,-500.0,0.00014572,2]
[338737964,1726903842584,-500.0,0.00014572,2]
[338737965,1726903842594,-681.06,0.00014572,2]
[338737966,1726903842608,-500.0,0.00014572,2]
[338737967,1726903842617,-500.0,0.00014572,2]
[338737968,1726903842627,-500.0,0.00014572,2]
[338737969,1726903842637,-599.90742919,0.00014572,2]
[338737970,1726903842650,-500.0,0.00014572,2]
[338737971,1726903842659,-500.0,0.00014572,2]
[338737972,1726903842670,-500.0,0.00014572,2]
[338737973,1726903842680,-500.0,0.00014572,2]
[338737974,1726903842691,-500.0,0.00014572,2]
[338737975,1726903842701,-500.0,0.00014572,2]
[338737976,1726903842711,-500.0,0.00014572,2]
[338737977,1726903842721,-500.0,0.00014572,2]
[338737978,1726903842731,-500.0,0.00014572,2]
[338737979,1726903842741,-576.22,0.00014572,2]
[338737980,1726903842752,-589.89,0.00014572,2]
[338737981,1726903842761,-500.0,0.00014572,2]
[338737982,1726903842770,-793.94,0.00014572,2]
[338737983,1726903842778,-500.0,0.00014572,2]
[338737984,1726903842787,-571.24,0.00014572,2]
[338737985,1726903842796,-561.96,0.00014572,2]
[338737986,1726903842805,-500.0,0.00014572,2]
[338737987,1726903842815,-500.0,0.00014572,2]
[338737988,1726903842824,-500.0,0.00014572,2]
[338737989,1726903842833,-500.0,0.00014572,2]
[338737990,1726903842843,-500.0,0.00014572,2]
[338737991,1726903842852,-500.0,0.00014572,2]
[338737992,1726903842861,-500.0,0.00014572,2]
[338737993,1726903842870,-500.0,0.00014572,2]
[338737994,1726903842880,-500.0,0.00014572,2]
[338737995,1726903842889,-501.61,0.00014572,2]
[338737996,1726903842899,-500.0,0.00014572,2]
[338737997,1726903842908,-513.24407418,0.00014572,2]
[338737999,1726903842918,-500.0,0.00014572,2]
[338738000,1726903842927,-500.0,0.00014572,2]
[338738001,1726903842936,-500.0,0.00014572,2]
[338738004,1726903842946,-500.0,0.00014572,2]
[338738006,1726903842955,-500.0,0.00014572,2]
[338738008,1726903842964,-468.02,0.00014572,2]
[338738010,1726903842973,-505.18049513,0.00014572,2]
[338738012,1726903842982,-169.32233652,0.00014572,2]
[338738014,1726903842991,-500.0,0.00014572,2]
[338738015,1726903843001,-1666.69,0.00014572,2]
[338738016,1726903843011,-500.0,0.00014572,2]
[338738017,1726903843021,-500.0,0.00014572,2]
[338738018,1726903843032,-541.023795,0.00014572,2]
[338738019,1726903843043,-541.023795,0.00014572,2]
[338738020,1726903843055,-500.0,0.00014574,2]
[338738022,1726903843064,-500.0,0.00014574,2]
[338738024,1726903843073,-200.0,0.00014574,2]
[338738026,1726903843084,-500.0,0.00014574,2]
[338738028,1726903843093,-500.0,0.00014574,2]
[338738030,1726903843103,-503.69,0.00014574,2]
[338738032,1726903843114,-340.789496,0.00014574,2]
[338738034,1726903843123,-340.789496,0.00014574,2]
[338738036,1726903843133,-294.133419,0.00014574,2]
[338738038,1726903843142,-294.133419,0.00014574,2]
[338738040,1726903843151,-1430.099672,0.00014574,2]
[338738042,1726903843160,-1430.099672,0.00014574,2]
[338738043,1726903843170,-1391.962742,0.00014574,2]
[338738044,1726903843179,-1391.962742,0.00014574,2]
[338738045,1726903843188,-500.0,0.00014576,2]
[338738046,1726903843197,-500.0,0.00014576,2]
[338738047,1726903843207,-500.0,0.00014576,2]
[338738049,1726903843216,-208.8866586,0.000146,2]
[338738050,1726903843226,-208.8866586,0.000146,2]
[338738051,1726903843236,-208.8866586,0.000146,2]
[338738052,1726903843245,-417.7244511,0.000146,2]
[338738053,1726903843254,-153.0,0.000146,2]
[338738054,1726903843264,-153.0,0.000146,2]
[338738055,1726903843274,-208.8866586,0.000146,2]
[338738056,1726903843283,-153.0,0.000146,2]
[338738057,1726903843292,-208.8866586,0.000146,2]
[338738058,1726903843302,-153.0,0.000146,2]
[338738060,1726903843312,-208.8866586,0.000146,2]
[338738061,1726903843323,-153.0,0.000146,2]
[338738062,1726903843334,-153.0,0.000146,2]
[338738063,1726903843343,-153.0,0.000146,2]
[338738064,1726903843352,-208.8866586,0.000146,2]
[338738065,1726903843362,-208.8866586,0.000147,2]
[338738066,1726903843371,-1142.69,0.000147,2]
[338738067,1726903843381,-423.66723604,0.00014703,2]
[338738068,1726903843390,-411.651906,0.00014724,2]
[338738069,1726903843399,-411.651906,0.00014724,2]
[338738070,1726903843409,-411.651906,0.00014724,2]
[338738071,1726903843419,-411.651906,0.00014724,2]
[338738072,1726903843429,-411.651906,0.00014724,2]
[338738073,1726903843438,-411.651906,0.00014724,2]
[338738074,1726903843448,-411.651906,0.00014724,2]
[338738075,1726903843457,-411.651906,0.00014724,2]
[338738076,1726903843467,-411.651906,0.00014724,2]
[338738077,1726903843476,-411.651906,0.00014724,2]
[338738078,1726903843487,-411.651906,0.00014724,2]
[338738079,1726903843497,-411.651906,0.00014724,2]
[338738080,1726903843508,-411.651906,0.00014724,2]
[338738081,1726903843518,-411.651906,0.00014724,2]
[338738082,1726903843528,-411.651906,0.00014724,2]
[338738083,1726903843537,-407.642322,0.00014724,2]
[338738084,1726903843546,-671.1426531,0.000148,2]
[338738085,1726903843555,-411.651906,0.000148,2]
[338738086,1726903843567,-411.651906,0.000148,2]
[338738087,1726903843578,-10316.0971946,0.00014807,2]
[338738088,1726903843587,-10316.0971946,0.00014808,2]
[338738089,1726903843596,-222.935091,0.00014817,2]
[338738090,1726903843609,-1164.640271,0.00014817,2]
[338738091,1726903843620,-1164.640271,0.00014817,2]
[338738092,1726903843631,-222.935091,0.00014817,2]
[338738093,1726903843640,-151.0,0.00014817,2]
[338738094,1726903843649,-151.0,0.00014817,2]
[338738095,1726903843658,-151.0,0.00014817,2]
[338738096,1726903843668,-1043.994693,0.00014817,2]
[338738097,1726903843678,-340.789496,0.00014818,2]
[338738098,1726903843688,-340.789496,0.00014818,2]
[338738099,1726903843699,-294.133419,0.00014818,2]
[338738100,1726903843710,-294.133419,0.00014818,2]
[338738101,1726903843720,-1430.099672,0.00014818,2]
[338738102,1726903843729,-151.0,0.00014818,2]
[338738103,1726903843740,-200.217822,0.00014818,2]
[338738104,1726903843749,-1430.099672,0.00014818,2]
[338738105,1726903843758,-1285.419918,0.00014818,2]
[338738106,1726903843768,-1285.419918,0.00014818,2]
[338738107,1726903843779,-151.0,0.00014818,2]
[338738108,1726903843790,-151.0,0.00014818,2]
[338738109,1726903843799,-151.0,0.00014818,2]
[338738110,1726903843809,-151.0,0.00014818,2]
[338738111,1726903843820,-1391.962742,0.00014818,2]
[338738112,1726903843831,-1391.962742,0.00014818,2]
[338738113,1726903843841,-208.586865,0.00014818,2]
[338738114,1726903843852,-208.586865,0.00014818,2]
[338738115,1726903843861,-2175.53523,0.00014818,2]
[338738116,1726903843872,-2175.53523,0.00014818,2]
[338738117,1726903843882,-908.649052,0.00014818,2]
[338738118,1726903843893,-908.649052,0.00014818,2]
[338738119,1726903843903,-10316.0971946,0.00014825,2]
[338738120,1726903843913,-541.023795,0.00014825,2]
[338738121,1726903843925,-541.023795,0.00014825,2]
[338738122,1726903843936,-10316.0971946,0.00014828,2]
[338738123,1726903843945,-151.0,0.00014828,2]
[338738124,1726903843955,-151.0,0.00014828,2]
[338738125,1726903843964,-151.0,0.00014828,2]
[338738126,1726903843973,-151.0,0.00014828,2]
[338738127,1726903843982,-151.0,0.00014828,2]
[338738128,1726903843991,-151.0,0.00014828,2]
[338738129,1726903844001,-736.656616,0.00014828,2]
[338738130,1726903844010,-736.656616,0.00014828,2]
[338738131,1726903844019,-151.444762,0.00014828,2]
[338738132,1726903844028,-151.0,0.00014828,2]
[338738133,1726903844038,-222.935091,0.00014828,2]
[338738134,1726903844047,-1164.640271,0.00014828,2]
[338738135,1726903844057,-1164.640271,0.00014828,2]
[338738136,1726903844067,-222.935091,0.00014828,2]
[338738137,1726903844076,-151.0,0.00014828,2]
[338738138,1726903844085,-151.0,0.00014828,2]
[338738139,1726903844094,-151.0,0.00014828,2]
[338738140,1726903844105,-1043.994693,0.00014828,2]
[338738141,1726903844115,-151.0,0.0001483,2]
[338738142,1726903844124,-151.0,0.0001483,2]
[338738143,1726903844134,-151.0,0.0001483,2]
[338738144,1726903844144,-151.0,0.0001483,2]
[338738145,1726903844153,-1700.158132,0.0001483,2]
[338738146,1726903844163,-1279.36883287,0.00014835,2]
[338738147,1726903844272,-6804.29742007,0.0001436,2]
[338738148,1726903844284,-150.0,0.00014449,2]
[338738149,1726903844297,-1043.994693,0.00014571,2]
[338738150,1726903844309,-1043.994693,0.00014817,2]
[338738151,1726903844320,-1043.994693,0.00014828,2]
[338738152,1726903844332,-9036.72836173,0.00014835,2]
[338738153,1726903844344,-340.789496,0.00014835,2]
[338738154,1726903844354,-340.789496,0.00014835,2]
[338738155,1726903844365,-294.133419,0.00014835,2]
[338738156,1726903844375,-294.133419,0.00014835,2]
[338738157,1726903844386,-1430.099672,0.00014835,2]
[338738158,1726903844400,-151.0,0.00014835,2]
[338738159,1726903844411,-1430.099672,0.00014835,2]
[338738160,1726903844423,-1285.419918,0.00014835,2]
[338738161,1726903844434,-1285.419918,0.00014835,2]
[338738162,1726903844446,-151.0,0.00014835,2]
[338738163,1726903844458,-151.0,0.00014835,2]
[338738164,1726903844471,-151.0,0.00014835,2]
[338738165,1726903844483,-151.0,0.00014835,2]
[338738166,1726903844494,-1391.962742,0.00014835,2]
[338738167,1726903844506,-1391.962742,0.00014835,2]
[338738168,1726903844518,-208.586865,0.00014835,2]
[338738169,1726903844531,-208.586865,0.00014835,2]
[338738170,1726903844543,-2175.53523,0.00014835,2]
[338738171,1726903844554,-2175.53523,0.00014835,2]
[338738172,1726903844565,-908.649052,0.00014835,2]
[338738173,1726903844578,-908.649052,0.00014835,2]
[338738174,1726903844590,-151.0,0.00014836,2]
[338738175,1726903844605,-151.0,0.00014836,2]
[338738176,1726903844618,-151.0,0.00014836,2]
[338738177,1726903844631,-151.0,0.00014836,2]
[338738178,1726903844642,-736.656616,0.00014836,2]
[338738179,1726903844652,-736.656616,0.00014836,2]
[338738180,1726903844663,-151.0,0.00014836,2]
[338738181,1726903844676,-222.935091,0.00014836,2]
[338738182,1726903844690,-1164.640271,0.00014836,2]
[338738183,1726903844703,-1164.640271,0.00014836,2]
[338738184,1726903844714,-222.935091,0.00014836,2]
[338738185,1726903844726,-151.0,0.00014836,2]
[338738186,1726903844737,-151.0,0.00014836,2]
[338738187,1726903844747,-151.0,0.00014836,2]
[338738188,1726903844758,-1043.994693,0.00014836,2]
[338738189,1726903844768,-1043.994693,0.00014836,2]
[338738190,1726903844781,-10316.0971946,0.00014836,2]
[338738191,1726903844794,-340.789496,0.00014838,2]
[338738192,1726903844805,-340.789496,0.00014838,2]
[338738193,1726903844815,-294.133419,0.00014838,2]
[338738194,1726903844828,-294.133419,0.00014838,2]
[338738195,1726903844840,-1430.099672,0.00014838,2]
[338738196,1726903844853,-1430.099672,0.00014838,2]
[338738197,1726903844865,-151.0,0.00014838,2]
[338738198,1726903844878,-1391.962742,0.00014838,2]
[338738199,1726903844890,-1391.962742,0.00014838,2]
[338738200,1726903844900,-208.586865,0.00014838,2]
[338738201,1726903844910,-208.586865,0.00014838,2]
[338738202,1726903844922,-908.649052,0.00014838,2]
[338738203,1726903844934,-908.649052,0.00014838,2]
[338738204,1726903844948,-500.0,0.00014839,2]
[338738205,1726903844959,-933.66,0.00014839,2]
[338738206,1726903844971,-500.0,0.00014839,2]
[338738207,1726903844983,-500.0,0.00014839,2]
[338738208,1726903844995,-550.69,0.00014839,2]
[338738209,1726903845008,-17433.27,0.00014839,2]
[338738210,1726903845018,-2498.75,0.00014839,2]
[338738211,1726903845029,-151.0,0.0001484,2]
[338738212,1726903845038,-151.0,0.0001484,2]
[338738213,1726903845048,-500.0,0.00014845,2]
[338738214,1726903845058,-952.32,0.00014845,2]
[338738215,1726903845068,-500.0,0.00014845,2]
[338738216,1726903845080,-500.0,0.00014845,2]
[338738217,1726903845091,-540.44,0.00014845,2]
[338738218,1726903845102,-505.26834954,0.00014845,2]
[338738219,1726903845113,-500.0,0.00014845,2]
[338738220,1726903845125,-172.75274404,0.00014845,2]
[338738221,1726903845136,-500.0,0.00014845,2]
[338738222,1726903845146,-500.0,0.00014845,2]
[338738223,1726903845155,-500.0,0.00014845,2]
[338738224,1726903845167,-500.0,0.00014845,2]
[338738225,1726903845179,-500.0,0.00014845,2]
[338738226,1726903845190,-500.0,0.00014845,2]
[338738227,1726903845200,-2098.32,0.00014845,2]
[338738228,1726903845211,-500.0,0.00014845,2]
[338738229,1726903845222,-500.0,0.00014845,2]
[338738230,1726903845233,-500.0,0.00014845,2]
[338738231,1726903845244,-1285.419918,0.00014845,2]
[338738232,1726903845255,-1285.419918,0.00014845,2]
[338738233,1726903845265,-151.0,0.00014845,2]
[338738234,1726903845276,-151.0,0.00014845,2]
[338738235,1726903845286,-500.0,0.00014845,2]
[338738236,1726903845296,-500.0,0.00014845,2]
[338738237,1726903845306,-375.74604447,0.00014845,2]
[338738238,1726903845317,-151.0,0.00014845,2]
[338738239,1726903845327,-500.0,0.00014845,2]
[338738240,1726903845338,-2175.53523,0.00014845,2]
[338738241,1726903845347,-2175.53523,0.00014845,2]
[338738242,1726903845359,-500.0,0.00014845,2]
[338738243,1726903845369,-1164.640271,0.00014845,2]
[338738244,1726903845383,-222.935091,0.00014845,2]
[338738245,1726903845393,-1164.640271,0.00014845,2]
[338738246,1726903845403,-222.935091,0.00014845,2]
[338738247,1726903845414,-180.88245,0.00014845,2]
[338738248,1726903845424,-500.0,0.00014845,2]
[338738249,1726903845435,-500.0,0.00014845,2]
[338738250,1726903845447,-910.96,0.00014845,2]
[338738251,1726903845458,-758.83,0.00014845,2]
[338738252,1726903845468,-151.0,0.00014845,2]
[338738253,1726903845480,-587.76834162,0.00014845,2]
[338738254,1726903845490,-151.0,0.00014845,2]
[338738255,1726903845502,-1084.14,0.00014845,2]
[338738256,1726903845516,-500.0,0.00014845,2]
[338738257,1726903845527,-541.023795,0.00014845,2]
[338738258,1726903845542,-1043.994693,0.00014845,2]
[338738259,1726903845555,-541.023795,0.00014845,2]
[338738260,1726903845565,-500.0,0.00014846,2]
[338738261,1726903845575,-626.33,0.00014846,2]
[338738262,1726903845585,-500.0,0.00014846,2]
[338738263,1726903845595,-500.0,0.00014846,2]
[338738264,1726903845610,-500.0,0.00014846,2]
[338738265,1726903845620,-500.0,0.00014846,2]
[338738266,1726903845631,-503.62,0.00014846,2]
[338738267,1726903845641,-500.0,0.00014846,2]
[338738268,1726903845651,-500.0,0.00014846,2]
[338738269,1726903845662,-500.0,0.00014846,2]
[338738270,1726903845679,-213.07478154,0.00014846,2]
[338738271,1726903845690,-500.0,0.00014846,2]
[338738272,1726903845700,-500.0,0.00014846,2]
[338738273,1726903845710,-500.0,0.00014846,2]
[338738274,1726903845720,-500.0,0.00014846,2]
[338738275,1726903845730,-500.0,0.00014846,2]
[338738276,1726903845740,-307.34497721,0.00014846,2]
[338738277,1726903845750,-500.0,0.00014846,2]
[338738279,1726903845760,-500.0,0.00014846,2]
[338738281,1726903845771,-500.0,0.00014846,2]
[338738283,1726903845781,-500.0,0.00014846,2]
[338738285,1726903845791,-500.0,0.00014846,2]
[338738287,1726903845801,-500.0,0.00014846,2]
[338738289,1726903845811,-500.0,0.00014846,2]
[338738290,1726903845821,-500.0,0.00014846,2]
[338738292,1726903845831,-153.650265,0.00014846,2]
[338738293,1726903845840,-151.0,0.00014846,2]
[338738295,1726903845851,-500.0,0.00014846,2]
[338738298,1726903845862,-151.0,0.00014846,2]
[338738300,1726903845872,-151.0,0.00014846,2]
[338738303,1726903845882,-641.77781914,0.00014846,2]
[338738304,1726903845892,-1700.158132,0.00014846,2]
[338738307,1726903845903,-500.0,0.00014846,2]
[338738310,1726903845913,-151.0,0.00014846,2]
[338738312,1726903845924,-500.0,0.00014846,2]
[338738315,1726903845934,-500.0,0.00014846,2]
[338738318,1726903845945,-500.0,0.00014846,2]
[338738320,1726903845956,-681.06,0.00014846,2]
[338738323,1726903845966,-500.0,0.00014846,2]
[338738326,1726903845977,-151.0,0.00014846,2]
[338738328,1726903845987,-263.242792,0.00014846,2]
[338738329,1726903845997,-151.0,0.00014846,2]
[338738331,1726903846007,-736.656616,0.00014846,2]
[338738333,1726903846018,-736.656616,0.00014846,2]
[338738334,1726903846028,-468.04690148,0.00014846,2]
[338738336,1726903846039,-151.0,0.00014846,2]
[338738339,1726903846049,-500.0,0.00014846,2]
[338738342,1726903846060,-500.0,0.00014846,2]
[338738345,1726903846070,-500.0,0.00014846,2]
[338738347,1726903846080,-500.0,0.00014846,2]
[338738349,1726903846090,-500.0,0.00014846,2]
[338738351,1726903846100,-362.64083535,0.00014846,2]
[338738352,1726903846111,-500.0,0.00014846,2]
[338738355,1726903846122,-541.539626,0.00014846,2]
[338738357,1726903846132,-500.0,0.00014846,2]
[338738358,1726903846142,-500.0,0.00014846,2]
[338738359,1726903846152,-576.22,0.00014846,2]
[338738360,1726903846163,-589.89,0.00014846,2]
[338738361,1726903846177,-793.94,0.00014846,2]
[338738362,1726903846187,-571.24,0.00014846,2]
[338738364,1726903846197,-561.96,0.00014846,2]
[338738366,1726903846207,-500.0,0.00014846,2]
[338738368,1726903846216,-500.0,0.00014846,2]
[338738370,1726903846226,-500.0,0.00014846,2]
[338738372,1726903846237,-500.0,0.00014846,2]
[338738374,1726903846247,-500.0,0.00014846,2]
[338738376,1726903846257,-500.0,0.00014846,2]
[338738378,1726903846267,-500.0,0.00014846,2]
[338738380,1726903846277,-500.0,0.00014846,2]
[338738382,1726903846287,-500.0,0.00014846,2]
[338738384,1726903846297,-501.61,0.00014846,2]
[338738386,1726903846307,-500.0,0.00014846,2]
[338738387,1726903846319,-500.0,0.00014846,2]
[338738388,1726903846329,-500.0,0.00014846,2]
[338738389,1726903846339,-500.0,0.00014846,2]
[338738390,1726903846350,-500.0,0.00014846,2]
[338738391,1726903846360,-500.0,0.00014846,2]
[338738392,1726903846371,-500.0,0.00014846,2]
[338738393,1726903846381,-1666.69,0.00014846,2]
[338738394,1726903846390,-500.0,0.00014846,2]
[338738395,1726903846400,-500.0,0.00014846,2]
[338738396,1726903846410,-155.184983,0.00014847,2]
[338738397,1726903846420,-175.060448,0.00014847,2]
[338738398,1726903846429,-175.060448,0.00014847,2]
[338738399,1726903846439,-151.0,0.00014847,2]
[338738400,1726903846449,-500.0,0.00014848,2]
[338738401,1726903846459,-200.0,0.00014848,2]
[338738402,1726903846468,-500.0,0.00014848,2]
[338738403,1726903846479,-496.222771,0.00014848,2]
[338738404,1726903846490,-496.222771,0.00014848,2]
[338738405,1726903846501,-447.81982127,0.00014848,2]
[338738406,1726903846512,-503.69,0.00014848,2]
[338738407,1726903846524,-500.0,0.0001485,2]
[338738408,1726903846536,-500.0,0.0001485,2]
[338738409,1726903846546,-151.0,0.0001485,2]
[338738410,1726903846556,-151.0,0.0001485,2]
[338738411,1726903846566,-151.0,0.0001485,2]
[338738412,1726903846576,-151.0,0.0001485,2]
[338738413,1726903846586,-797.234245,0.0001485,2]
[338738414,1726903846596,-151.0,0.0001485,2]
[338738415,1726903846611,-208.465755,0.0001485,2]
[338738416,1726903846621,-208.465755,0.0001485,2]
[338738417,1726903846631,-366.71633,0.0001485,2]
[338738418,1726903846641,-366.71633,0.0001485,2]
[338738419,1726903846651,-151.0,0.0001485,2]
[338738420,1726903846661,-208.586865,0.0001485,2]
[338738421,1726903846672,-208.586865,0.0001485,2]
[338738422,1726903846682,-908.649052,0.0001485,2]